[Event "Titled Tuesday Blitz March 28 Late 2023"]
[White "Levine, Joseph"]
[Black "Jocev, Milan"]
[WhiteFideId "30940346"]
[BlackFideId "900680"]
[WhiteElo "2351"]
[BlackElo "2323"]
[Result "1-0"]
[Round "09"]
[TimeControl "180+2"]
[Date "2023.03.28"]
[WhiteClock "0:00:02"]
[BlackClock "0:00:07"]

1. e4 {[%clk 0:03:00]}  e5 {[%clk 0:02:58]} 2. Nf3 {[%clk 0:03:00]}  Nc6 {[%clk 0:02:59]} 3. Bc4 {[%clk 0:03:00]}  Nf6 {[%clk 0:02:59]} 4. d3 {[%clk 0:03:00]}  Bc5 {[%clk 0:02:58]} 5. c3 {[%clk 0:03:00]}  a6 {[%clk 0:02:58]} 6. Nbd2 {[%clk 0:03:00]}  d6 {[%clk 0:02:57]} 7. Bb3 {[%clk 0:02:57]}  O-O {[%clk 0:02:56]} 8. O-O {[%clk 0:02:57]}  Ba7 {[%clk 0:02:56]} 9. h3 {[%clk 0:02:56]}  Be6 {[%clk 0:02:52]} 10. Re1 {[%clk 0:02:55]}  Re8 {[%clk 0:02:43]} 11. Nf1 {[%clk 0:02:55]}  d5 {[%clk 0:02:33]} 12. Bg5 {[%clk 0:02:52]}  dxe4 {[%clk 0:02:30]} 13. dxe4 {[%clk 0:02:51]}  Qe7 {[%clk 0:02:06]} 14. Ne3 {[%clk 0:02:40]}  Bxe3 {[%clk 0:01:53]} 15. Rxe3 {[%clk 0:02:39]}  Rad8 {[%clk 0:01:51]} 16. Rd3 {[%clk 0:02:33]}  Rxd3 {[%clk 0:01:46]} 17. Qxd3 {[%clk 0:02:34]}  Bxb3 {[%clk 0:01:35]} 18. axb3 {[%clk 0:02:33]}  Rd8 {[%clk 0:01:26]} 19. Qc2 {[%clk 0:02:33]}  Qd6 {[%clk 0:01:24]} 20. Kf1 {[%clk 0:02:16]}  h6 {[%clk 0:01:18]} 21. Be3 {[%clk 0:01:53]}  Ne7 {[%clk 0:00:56]} 22. Nd2 {[%clk 0:01:45]}  Ng6 {[%clk 0:00:54]} 23. g3 {[%clk 0:01:44]}  Qe6 {[%clk 0:00:47]} 24. Kg2 {[%clk 0:01:43]}  h5 {[%clk 0:00:47]} 25. f3 {[%clk 0:01:12]}  h4 {[%clk 0:00:46]} 26. g4 {[%clk 0:01:12]}  Nf4+ {[%clk 0:00:44]} 27. Bxf4 {[%clk 0:01:02]}  exf4 {[%clk 0:00:45]} 28. Nf1 {[%clk 0:00:45]}  Qd6 {[%clk 0:00:34]} 29. Kf2 {[%clk 0:00:38]}  Nh7 {[%clk 0:00:32]} 30. Kg2 {[%clk 0:00:34]}  Ng5 {[%clk 0:00:32]} 31. Re1 {[%clk 0:00:17]}  Qd3 {[%clk 0:00:27]} 32. Qf2 {[%clk 0:00:15]}  f6 {[%clk 0:00:16]} 33. Re2 {[%clk 0:00:15]}  Rd6 {[%clk 0:00:11]} 34. Rd2 {[%clk 0:00:14]}  Qb1 {[%clk 0:00:11]} 35. Rxd6 {[%clk 0:00:13]}  cxd6 {[%clk 0:00:12]} 36. b4 {[%clk 0:00:06]}  b5 {[%clk 0:00:10]} 37. Nh2 {[%clk 0:00:04]}  Qd1 {[%clk 0:00:10]} 38. Qxh4 {[%clk 0:00:04]}  Qe2+ {[%clk 0:00:05]} 39. Qf2 {[%clk 0:00:05]}  Qd3 {[%clk 0:00:06]} 40. h4 {[%clk 0:00:04]}  Nf7 {[%clk 0:00:06]} 41. Nf1 {[%clk 0:00:04]}  Ne5 {[%clk 0:00:06]} 42. Nd2 {[%clk 0:00:03]}  d5 {[%clk 0:00:05]} 43. exd5 {[%clk 0:00:03]}  Qxd5 {[%clk 0:00:06]} 44. Ne4 {[%clk 0:00:03]}  Qd4 {[%clk 0:00:07]} 45. Kh3 {[%clk 0:00:02]} 1-0


[Site "https://www.chess.com"]

[Event "Titled Tuesday Blitz March 28 Late 2023"]
[White "Vlassov, Nikolai"]
[Black "Mendez Fortes, Eduardo Jesus"]
[WhiteFideId "4103360"]
[BlackFideId "3502376"]
[WhiteElo "2324"]
[BlackElo "2307"]
[Result "1/2-1/2"]
[Round "09"]
[TimeControl "180+2"]
[Date "2023.03.28"]
[WhiteClock "0:00:04"]
[BlackClock "0:00:12"]

1. e4 {[%clk 0:02:54]}  c5 {[%clk 0:02:57]} 2. c3 {[%clk 0:02:54]}  Nf6 {[%clk 0:02:56]} 3. e5 {[%clk 0:02:54]}  Nd5 {[%clk 0:02:56]} 4. d4 {[%clk 0:02:54]}  cxd4 {[%clk 0:02:57]} 5. cxd4 {[%clk 0:02:55]}  Nc6 {[%clk 0:02:57]} 6. Nc3 {[%clk 0:02:54]}  Nxc3 {[%clk 0:02:56]} 7. bxc3 {[%clk 0:02:55]}  d5 {[%clk 0:02:56]} 8. Bd3 {[%clk 0:02:54]}  g6 {[%clk 0:02:48]} 9. h4 {[%clk 0:02:53]}  h5 {[%clk 0:02:48]} 10. Nh3 {[%clk 0:02:52]}  Bg4 {[%clk 0:02:46]} 11. Qc2 {[%clk 0:02:52]}  Bxh3 {[%clk 0:02:41]} 12. Rxh3 {[%clk 0:02:51]}  e6 {[%clk 0:02:41]} 13. Bg5 {[%clk 0:02:31]}  Be7 {[%clk 0:02:39]} 14. f4 {[%clk 0:02:10]}  Qa5 {[%clk 0:02:30]} 15. Kf1 {[%clk 0:02:01]}  Rc8 {[%clk 0:02:22]} 16. Qb3 {[%clk 0:02:01]}  Bxg5 {[%clk 0:02:16]} 17. hxg5 {[%clk 0:01:52]}  O-O {[%clk 0:01:59]} 18. Kf2 {[%clk 0:01:38]}  Ne7 {[%clk 0:01:58]} 19. Bc2 {[%clk 0:01:21]}  Rc7 {[%clk 0:01:56]} 20. Re1 {[%clk 0:01:05]}  Rfc8 {[%clk 0:01:51]} 21. Ree3 {[%clk 0:01:05]}  b5 {[%clk 0:01:50]} 22. Bb1 {[%clk 0:00:59]}  Rc4 {[%clk 0:01:39]} 23. Qb2 {[%clk 0:00:43]}  b4 {[%clk 0:01:22]} 24. cxb4 {[%clk 0:00:40]}  Rxb4 {[%clk 0:01:23]} 25. Rb3 {[%clk 0:00:38]}  Rxb3 {[%clk 0:01:20]} 26. Rxb3 {[%clk 0:00:37]}  Kg7 {[%clk 0:01:11]} 27. Rb5 {[%clk 0:00:26]}  Qa6 {[%clk 0:01:01]} 28. Bd3 {[%clk 0:00:25]}  Qa4 {[%clk 0:00:55]} 29. Ke3 {[%clk 0:00:24]}  Qd1 {[%clk 0:00:49]} 30. Rb7 {[%clk 0:00:19]}  Nc6 {[%clk 0:00:43]} 31. Qe2 {[%clk 0:00:11]}  Qa1 {[%clk 0:00:37]} 32. Qb2 {[%clk 0:00:11]}  Qe1+ {[%clk 0:00:31]} 33. Qe2 {[%clk 0:00:11]}  Qg3+ {[%clk 0:00:16]} 34. Qf3 {[%clk 0:00:11]}  Qe1+ {[%clk 0:00:16]} 35. Qe2 {[%clk 0:00:11]}  Qg1+ {[%clk 0:00:15]} 36. Qf2 {[%clk 0:00:11]}  Qc1+ {[%clk 0:00:15]} 37. Qd2 {[%clk 0:00:11]}  Qa3 {[%clk 0:00:15]} 38. Qb2 {[%clk 0:00:10]}  Qa4 {[%clk 0:00:11]} 39. Qb3 {[%clk 0:00:11]}  Qxd4+ {[%clk 0:00:10]} 40. Kf3 {[%clk 0:00:11]}  Qc5 {[%clk 0:00:11]} 41. Kg3 {[%clk 0:00:10]}  Nd4 {[%clk 0:00:11]} 42. Qb4 {[%clk 0:00:09]}  Qc3 {[%clk 0:00:11]} 43. Qxc3 {[%clk 0:00:09]}  Rxc3 {[%clk 0:00:11]} 44. Rxa7 {[%clk 0:00:09]}  Rxd3+ {[%clk 0:00:12]} 45. Kf2 {[%clk 0:00:09]}  Nf5 {[%clk 0:00:11]} 46. a4 {[%clk 0:00:08]}  Ra3 {[%clk 0:00:11]} 47. a5 {[%clk 0:00:08]}  d4 {[%clk 0:00:12]} 48. a6 {[%clk 0:00:09]}  Ra2+ {[%clk 0:00:13]} 49. Kf3 {[%clk 0:00:08]}  d3 {[%clk 0:00:13]} 50. Rd7 {[%clk 0:00:07]}  Rxa6 {[%clk 0:00:13]} 51. Rxd3 {[%clk 0:00:08]}  Ra4 {[%clk 0:00:13]} 52. g4 {[%clk 0:00:08]}  hxg4+ {[%clk 0:00:12]} 53. Kxg4 {[%clk 0:00:09]}  Ra2 {[%clk 0:00:12]} 54. Rd7 {[%clk 0:00:08]}  Rg2+ {[%clk 0:00:12]} 55. Kf3 {[%clk 0:00:09]}  Rg3+ {[%clk 0:00:12]} 56. Kf2 {[%clk 0:00:09]}  Rb3 {[%clk 0:00:12]} 57. Rc7 {[%clk 0:00:08]}  Kf8 {[%clk 0:00:13]} 58. Ra7 {[%clk 0:00:08]}  Ne7 {[%clk 0:00:12]} 59. Rb7 {[%clk 0:00:08]}  Nd5 {[%clk 0:00:13]} 60. Rxb3 {[%clk 0:00:08]}  Nxf4 {[%clk 0:00:13]} 61. Kf3 {[%clk 0:00:08]}  Nd5 {[%clk 0:00:13]} 62. Ke4 {[%clk 0:00:09]}  Kg7 {[%clk 0:00:13]} 63. Rb7 {[%clk 0:00:09]}  Nc3+ {[%clk 0:00:13]} 64. Kd4 {[%clk 0:00:09]}  Nd5 {[%clk 0:00:13]} 65. Ke4 {[%clk 0:00:09]}  Nc3+ {[%clk 0:00:12]} 66. Kd4 {[%clk 0:00:09]}  Ne2+ {[%clk 0:00:12]} 67. Ke4 {[%clk 0:00:10]}  Ng3+ {[%clk 0:00:12]} 68. Kf4 {[%clk 0:00:10]}  Nf5 {[%clk 0:00:12]} 69. Rd7 {[%clk 0:00:09]}  Kf8 {[%clk 0:00:12]} 70. Ke4 {[%clk 0:00:09]}  Ne7 {[%clk 0:00:12]} 71. Ra7 {[%clk 0:00:09]}  Nd5 {[%clk 0:00:11]} 72. Kd4 {[%clk 0:00:09]}  Kg7 {[%clk 0:00:10]} 73. Rb7 {[%clk 0:00:08]}  Nf4 {[%clk 0:00:10]} 74. Ke4 {[%clk 0:00:09]}  Nh3 {[%clk 0:00:10]} 75. Rb4 {[%clk 0:00:03]}  Nxg5+ {[%clk 0:00:10]} 76. Kf4 {[%clk 0:00:04]}  Nh7 {[%clk 0:00:10]} 77. Kg4 {[%clk 0:00:03]}  Nf8 {[%clk 0:00:10]} 78. Kf4 {[%clk 0:00:03]}  Nd7 {[%clk 0:00:11]} 79. Rb5 {[%clk 0:00:04]}  Kf8 {[%clk 0:00:10]} 80. Ke4 {[%clk 0:00:02]}  Ke7 {[%clk 0:00:10]} 81. Kf4 {[%clk 0:00:02]}  Kf8 {[%clk 0:00:11]} 82. Ke4 {[%clk 0:00:03]}  Kg7 {[%clk 0:00:11]} 83. Kf4 {[%clk 0:00:03]}  Nf8 {[%clk 0:00:11]} 84. Ke4 {[%clk 0:00:04]}  g5 {[%clk 0:00:11]} 85. Rb7 {[%clk 0:00:03]}  Ng6 {[%clk 0:00:12]} 86. Rb1 {[%clk 0:00:03]}  Nf4 {[%clk 0:00:12]} 87. Rh1 {[%clk 0:00:03]}  Kg6 {[%clk 0:00:12]} 88. Rh8 {[%clk 0:00:02]}  Kg7 {[%clk 0:00:11]} 89. Rh1 {[%clk 0:00:02]}  Kg6 {[%clk 0:00:09]} 90. Rg1 {[%clk 0:00:02]}  Nd5 {[%clk 0:00:09]} 91. Rh1 {[%clk 0:00:02]}  Nc3+ {[%clk 0:00:09]} 92. Kd4 {[%clk 0:00:03]}  Ne2+ {[%clk 0:00:09]} 93. Ke3 {[%clk 0:00:03]}  Nf4 {[%clk 0:00:09]} 94. Ke4 {[%clk 0:00:03]}  Ne2 {[%clk 0:00:10]} 95. Rh2 {[%clk 0:00:03]}  Ng3+ {[%clk 0:00:10]} 96. Kf3 {[%clk 0:00:02]}  Nf5 {[%clk 0:00:09]} 97. Ke4 {[%clk 0:00:02]}  Ne7 {[%clk 0:00:08]} 98. Rh1 {[%clk 0:00:02]}  Nd5 {[%clk 0:00:09]} 99. Rg1 {[%clk 0:00:02]}  Nc3+ {[%clk 0:00:06]} 100. Ke3 {[%clk 0:00:01]}  Kf5 {[%clk 0:00:05]} 101. Rf1+ {[%clk 0:00:02]}  Kg6 {[%clk 0:00:05]} 102. Rg1 {[%clk 0:00:02]}  Na4 {[%clk 0:00:04]} 103. Ke4 {[%clk 0:00:02]}  Nc5+ {[%clk 0:00:04]} 104. Kd4 {[%clk 0:00:02]}  Nd7 {[%clk 0:00:04]} 105. Ke4 {[%clk 0:00:02]}  Nf8 {[%clk 0:00:05]} 106. Rf1 {[%clk 0:00:03]}  Nh7 {[%clk 0:00:05]} 107. Rg1 {[%clk 0:00:03]}  Kg7 {[%clk 0:00:03]} 108. Rg2 {[%clk 0:00:03]}  Kg6 {[%clk 0:00:03]} 109. Rg1 {[%clk 0:00:04]}  Nf8 {[%clk 0:00:04]} 110. Rg2 {[%clk 0:00:04]}  f5+ {[%clk 0:00:04]} 111. exf6 {[%clk 0:00:04]}  Kxf6 {[%clk 0:00:05]} 112. Rf2+ {[%clk 0:00:05]}  Ke7 {[%clk 0:00:05]} 113. Kf3 {[%clk 0:00:04]}  Nd7 {[%clk 0:00:05]} 114. Kg4 {[%clk 0:00:04]}  Nf6+ {[%clk 0:00:06]} 115. Kf3 {[%clk 0:00:04]}  Kf7 {[%clk 0:00:05]} 116. Ra2 {[%clk 0:00:03]}  Kg6 {[%clk 0:00:06]} 117. Ra6 {[%clk 0:00:03]}  Kf5 {[%clk 0:00:06]} 118. Ra5+ {[%clk 0:00:03]}  e5 {[%clk 0:00:07]} 119. Ra8 {[%clk 0:00:03]}  g4+ {[%clk 0:00:07]} 120. Kg2 {[%clk 0:00:04]}  Ne4 {[%clk 0:00:07]} 121. Rf8+ {[%clk 0:00:03]}  Kg5 {[%clk 0:00:07]} 122. Rg8+ {[%clk 0:00:04]}  Kf4 {[%clk 0:00:08]} 123. Rf8+ {[%clk 0:00:04]}  Kg5 {[%clk 0:00:07]} 124. Rg8+ {[%clk 0:00:05]}  Kf5 {[%clk 0:00:07]} 125. Rf8+ {[%clk 0:00:05]}  Nf6 {[%clk 0:00:08]} 126. Rf7 {[%clk 0:00:06]}  e4 {[%clk 0:00:08]} 127. Re7 {[%clk 0:00:06]}  Kg5 {[%clk 0:00:08]} 128. Re5+ {[%clk 0:00:05]}  Kf4 {[%clk 0:00:08]} 129. Re7 {[%clk 0:00:05]}  Nd5 {[%clk 0:00:08]} 130. Rf7+ {[%clk 0:00:06]}  Ke5 {[%clk 0:00:08]} 131. Rg7 {[%clk 0:00:06]}  Kd4 {[%clk 0:00:07]} 132. Kf2 {[%clk 0:00:05]}  e3+ {[%clk 0:00:07]} 133. Kg3 {[%clk 0:00:05]}  e2 {[%clk 0:00:07]} 134. Kf2 {[%clk 0:00:05]}  Kd3 {[%clk 0:00:05]} 135. Rxg4 {[%clk 0:00:03]}  Ne3 {[%clk 0:00:03]} 136. Rg3 {[%clk 0:00:02]}  e1=Q+ {[%clk 0:00:03]} 137. Kxe1 {[%clk 0:00:01]}  Ke4 {[%clk 0:00:04]} 138. Ke2 {[%clk 0:00:02]}  Nf5 {[%clk 0:00:05]} 139. Rg4+ {[%clk 0:00:02]}  Ke5 {[%clk 0:00:05]} 140. Kf3 {[%clk 0:00:03]}  Nd4+ {[%clk 0:00:06]} 141. Ke3 {[%clk 0:00:03]}  Nf5+ {[%clk 0:00:06]} 142. Kd3 {[%clk 0:00:03]}  Nd6 {[%clk 0:00:07]} 143. Rg5+ {[%clk 0:00:04]}  Nf5 {[%clk 0:00:07]} 144. Kc4 {[%clk 0:00:03]}  Kf4 {[%clk 0:00:06]} 145. Rg6 {[%clk 0:00:03]}  Ke5 {[%clk 0:00:07]} 146. Kc5 {[%clk 0:00:03]}  Ke4 {[%clk 0:00:07]} 147. Re6+ {[%clk 0:00:03]}  Kf4 {[%clk 0:00:08]} 148. Kd5 {[%clk 0:00:04]}  Ne3+ {[%clk 0:00:06]} 149. Kd4 {[%clk 0:00:04]}  Nf5+ {[%clk 0:00:06]} 150. Kd3 {[%clk 0:00:05]}  Ng3 {[%clk 0:00:06]} 151. Rf6+ {[%clk 0:00:05]}  Ke5 {[%clk 0:00:06]} 152. Rf3 {[%clk 0:00:05]}  Nf5 {[%clk 0:00:06]} 153. Kc4 {[%clk 0:00:05]}  Nd6+ {[%clk 0:00:06]} 154. Kc5 {[%clk 0:00:05]}  Ne4+ {[%clk 0:00:06]} 155. Kc6 {[%clk 0:00:06]}  Kd4 {[%clk 0:00:06]} 156. Rf4 {[%clk 0:00:06]}  Ke5 {[%clk 0:00:07]} 157. Rg4 {[%clk 0:00:06]}  Kd4 {[%clk 0:00:08]} 158. Rh4 {[%clk 0:00:06]}  Ke5 {[%clk 0:00:09]} 159. Rh5+ {[%clk 0:00:07]}  Kd4 {[%clk 0:00:09]} 160. Rd5+ {[%clk 0:00:07]}  Ke3 {[%clk 0:00:09]} 161. Rd1 {[%clk 0:00:08]}  Kf4 {[%clk 0:00:10]} 162. Re1 {[%clk 0:00:07]}  Ke5 {[%clk 0:00:09]} 163. Re2 {[%clk 0:00:07]}  Kd4 {[%clk 0:00:09]} 164. Ra2 {[%clk 0:00:07]}  Ke3 {[%clk 0:00:10]} 165. Ra3+ {[%clk 0:00:06]}  Kd4 {[%clk 0:00:10]} 166. Ra4+ {[%clk 0:00:05]}  Ke5 {[%clk 0:00:10]} 167. Ra5+ {[%clk 0:00:05]}  Kd4 {[%clk 0:00:11]} 168. Ra4+ {[%clk 0:00:04]}  Ke3 {[%clk 0:00:11]} 169. Rxe4+ {[%clk 0:00:04]}  Kxe4 {[%clk 0:00:12]} 1/2-1/2


[Site "https://www.chess.com"]

[Event "Titled Tuesday Blitz March 28 Late 2023"]
[White "Koksal, Ege"]
[Black "Dudzinski, Pawel"]
[WhiteFideId "6317626"]
[BlackFideId "1117890"]
[WhiteElo "2226"]
[BlackElo "2099"]
[Result "0-1"]
[Round "09"]
[TimeControl "180+2"]
[Date "2023.03.28"]
[WhiteClock "0:00:02"]
[BlackClock "0:00:12"]

1. d4 {[%clk 0:03:00]}  d5 {[%clk 0:00:51]} 2. c4 {[%clk 0:03:00]}  c6 {[%clk 0:00:52]} 3. Nc3 {[%clk 0:03:00]}  e6 {[%clk 0:00:52]} 4. e3 {[%clk 0:03:00]}  f5 {[%clk 0:00:53]} 5. Bd3 {[%clk 0:03:00]}  Nf6 {[%clk 0:00:54]} 6. Nge2 {[%clk 0:03:01]}  Be7 {[%clk 0:00:54]} 7. O-O {[%clk 0:03:01]}  O-O {[%clk 0:00:55]} 8. b3 {[%clk 0:03:02]}  Bd7 {[%clk 0:00:56]} 9. Bb2 {[%clk 0:03:02]}  Be8 {[%clk 0:00:56]} 10. f3 {[%clk 0:03:03]}  Bh5 {[%clk 0:00:56]} 11. Nf4 {[%clk 0:03:03]}  Bf7 {[%clk 0:00:54]} 12. Qc2 {[%clk 0:03:01]}  g5 {[%clk 0:00:55]} 13. Nfe2 {[%clk 0:03:01]}  Bg6 {[%clk 0:00:54]} 14. e4 {[%clk 0:03:01]}  fxe4 {[%clk 0:00:51]} 15. fxe4 {[%clk 0:03:02]}  Nbd7 {[%clk 0:00:46]} 16. e5 {[%clk 0:02:50]}  Bxd3 {[%clk 0:00:47]} 17. Qxd3 {[%clk 0:02:50]}  Ne8 {[%clk 0:00:47]} 18. Rxf8+ {[%clk 0:01:51]}  Nxf8 {[%clk 0:00:47]} 19. Rf1 {[%clk 0:01:52]}  Ng7 {[%clk 0:00:48]} 20. Bc1 {[%clk 0:01:52]}  Ng6 {[%clk 0:00:47]} 21. Ng3 {[%clk 0:01:48]}  Qd7 {[%clk 0:00:47]} 22. c5 {[%clk 0:01:43]}  Rf8 {[%clk 0:00:47]} 23. Be3 {[%clk 0:01:40]}  Rxf1+ {[%clk 0:00:46]} 24. Qxf1 {[%clk 0:01:41]}  Qe8 {[%clk 0:00:45]} 25. b4 {[%clk 0:01:35]}  Qf7 {[%clk 0:00:45]} 26. b5 {[%clk 0:01:34]}  Qxf1+ {[%clk 0:00:44]} 27. Kxf1 {[%clk 0:01:35]}  Bd8 {[%clk 0:00:42]} 28. Ke2 {[%clk 0:01:19]}  Nf4+ {[%clk 0:00:37]} 29. Bxf4 {[%clk 0:01:11]}  gxf4 {[%clk 0:00:38]} 30. Nf1 {[%clk 0:01:10]}  Ba5 {[%clk 0:00:38]} 31. bxc6 {[%clk 0:00:53]}  bxc6 {[%clk 0:00:39]} 32. Kd3 {[%clk 0:00:54]}  Kf7 {[%clk 0:00:36]} 33. Nd2 {[%clk 0:00:54]}  Kg6 {[%clk 0:00:33]} 34. Nb3 {[%clk 0:00:49]}  Bd8 {[%clk 0:00:31]} 35. a4 {[%clk 0:00:49]}  Kf5 {[%clk 0:00:29]} 36. Na2 {[%clk 0:00:49]}  a5 {[%clk 0:00:21]} 37. Nc3 {[%clk 0:00:50]}  Kg4 {[%clk 0:00:18]} 38. Nd2 {[%clk 0:00:44]}  Nf5 {[%clk 0:00:18]} 39. Nb5 {[%clk 0:00:13]}  Ne3 {[%clk 0:00:14]} 40. g3 {[%clk 0:00:06]}  fxg3 {[%clk 0:00:14]} 41. hxg3 {[%clk 0:00:06]}  Nf5 {[%clk 0:00:15]} 42. Nd6 {[%clk 0:00:04]}  Nxg3 {[%clk 0:00:12]} 43. Nf7 {[%clk 0:00:03]}  Bc7 {[%clk 0:00:12]} 44. Nb3 {[%clk 0:00:02]}  h5 {[%clk 0:00:12]} 0-1


[Site "https://www.chess.com"]

[Event "Titled Tuesday Blitz March 28 Late 2023"]
[White "Itkis, Boris"]
[Black "Rytenko, Vsevolod"]
[WhiteFideId "1209167"]
[BlackFideId "14133040"]
[WhiteElo "2216"]
[BlackElo "2262"]
[Result "0-1"]
[Round "09"]
[TimeControl "180+2"]
[Date "2023.03.28"]
[WhiteClock "0:01:36"]
[BlackClock "0:00:49"]

1. c4 {[%clk 0:03:00]}  e5 {[%clk 0:02:57]} 2. Nf3 {[%clk 0:02:53]}  Nc6 {[%clk 0:02:57]} 3. Nc3 {[%clk 0:02:51]}  Nf6 {[%clk 0:02:57]} 4. e4 {[%clk 0:02:49]}  g6 {[%clk 0:02:54]} 5. d4 {[%clk 0:02:44]}  exd4 {[%clk 0:02:53]} 6. Nxd4 {[%clk 0:02:41]}  Bg7 {[%clk 0:02:52]} 7. Nxc6 {[%clk 0:02:38]}  bxc6 {[%clk 0:02:53]} 8. e5 {[%clk 0:02:38]}  Qe7 {[%clk 0:02:41]} 9. Qe2 {[%clk 0:02:36]}  Ng8 {[%clk 0:02:35]} 10. f4 {[%clk 0:02:35]}  f6 {[%clk 0:02:19]} 11. Bd2 {[%clk 0:02:10]}  fxe5 {[%clk 0:02:15]} 12. O-O-O {[%clk 0:02:09]}  d6 {[%clk 0:01:56]} 13. Qf3 {[%clk 0:02:04]}  Bd7 {[%clk 0:01:53]} 14. fxe5 {[%clk 0:01:48]}  Bxe5 {[%clk 0:01:51]} 15. Nb5 {[%clk 0:01:47]}  Qd8 {[%clk 0:01:06]} 16. Bc3 {[%clk 0:01:47]}  cxb5 {[%clk 0:01:02]} 17. Bxe5 {[%clk 0:01:44]}  dxe5 {[%clk 0:01:02]} 18. cxb5 {[%clk 0:01:37]}  Qg5+ {[%clk 0:00:52]} 19. Kb1 {[%clk 0:01:36]}  Qf5+ {[%clk 0:00:49]} 0-1


[Site "https://www.chess.com"]

[Event "Titled Tuesday Blitz March 28 Late 2023"]
[White "Foerster-Yialamas, Lucas"]
[Black "Gold_Ocean"]
[WhiteFideId "30901774"]
[WhiteElo "2067"]
[BlackElo "2603"]
[Result "0-1"]
[Round "09"]
[TimeControl "180+2"]
[Date "2023.03.28"]
[WhiteClock "0:02:07"]
[BlackClock "0:02:17"]

1. e4 {[%clk 0:03:00]}  c5 {[%clk 0:02:59]} 2. Nf3 {[%clk 0:02:59]}  d6 {[%clk 0:02:59]} 3. d4 {[%clk 0:02:58]}  cxd4 {[%clk 0:03:00]} 4. Nxd4 {[%clk 0:02:58]}  Nf6 {[%clk 0:02:58]} 5. Nc3 {[%clk 0:02:58]}  a6 {[%clk 0:02:57]} 6. f3 {[%clk 0:02:57]}  e5 {[%clk 0:02:50]} 7. Nb3 {[%clk 0:02:57]}  Be6 {[%clk 0:02:45]} 8. Be3 {[%clk 0:02:55]}  Be7 {[%clk 0:02:35]} 9. Qd2 {[%clk 0:02:53]}  h5 {[%clk 0:02:35]} 10. O-O-O {[%clk 0:02:53]}  Nbd7 {[%clk 0:02:32]} 11. h3 {[%clk 0:02:48]}  Rc8 {[%clk 0:02:29]} 12. Be2 {[%clk 0:02:46]}  h4 {[%clk 0:02:25]} 13. Rdg1 {[%clk 0:02:25]}  b5 {[%clk 0:02:24]} 14. g4 {[%clk 0:02:22]}  hxg3 {[%clk 0:02:23]} 15. Rxg3 {[%clk 0:02:23]}  g6 {[%clk 0:02:24]} 16. f4 {[%clk 0:02:15]}  Qc7 {[%clk 0:02:19]} 17. Nd5 {[%clk 0:02:06]}  Bxd5 {[%clk 0:02:18]} 18. exd5 {[%clk 0:02:07]}  Ne4 {[%clk 0:02:17]} 0-1


[Site "https://www.chess.com"]

[Event "Titled Tuesday Blitz March 28 Late 2023"]
[White "reevecanada"]
[Black "Freitag, Manfred"]
[BlackFideId "1602004"]
[WhiteElo "2432"]
[BlackElo "2275"]
[Result "0-1"]
[Round "09"]
[TimeControl "180+2"]
[Date "2023.03.28"]
[WhiteClock "0:00:18"]
[BlackClock "0:01:22"]

1. e4 {[%clk 0:02:52]}  c5 {[%clk 0:02:58]} 2. Nf3 {[%clk 0:02:52]}  d6 {[%clk 0:02:59]} 3. d4 {[%clk 0:02:52]}  cxd4 {[%clk 0:02:59]} 4. Qxd4 {[%clk 0:02:52]}  Nc6 {[%clk 0:02:59]} 5. Qe3 {[%clk 0:02:53]}  g6 {[%clk 0:02:58]} 6. c4 {[%clk 0:02:52]}  Bg7 {[%clk 0:02:58]} 7. Nc3 {[%clk 0:02:52]}  Nf6 {[%clk 0:02:59]} 8. Be2 {[%clk 0:02:52]}  Bg4 {[%clk 0:02:59]} 9. O-O {[%clk 0:02:52]}  O-O {[%clk 0:02:59]} 10. Rb1 {[%clk 0:02:49]}  Nd7 {[%clk 0:02:57]} 11. b3 {[%clk 0:02:49]}  Rc8 {[%clk 0:02:57]} 12. Bb2 {[%clk 0:02:49]}  Qa5 {[%clk 0:02:57]} 13. a3 {[%clk 0:02:48]}  Qc5 {[%clk 0:02:56]} 14. Nd5 {[%clk 0:02:42]}  Qxe3 {[%clk 0:02:53]} 15. Nxe3 {[%clk 0:02:43]}  Bxf3 {[%clk 0:02:53]} 16. Bxf3 {[%clk 0:02:43]}  Bxb2 {[%clk 0:02:45]} 17. Rxb2 {[%clk 0:02:44]}  Nde5 {[%clk 0:02:46]} 18. Be2 {[%clk 0:02:41]}  Nd4 {[%clk 0:02:46]} 19. f4 {[%clk 0:02:40]}  Nxe2+ {[%clk 0:02:43]} 20. Rxe2 {[%clk 0:02:39]}  Nc6 {[%clk 0:02:41]} 21. Rd1 {[%clk 0:02:40]}  Na5 {[%clk 0:02:39]} 22. Rd3 {[%clk 0:02:37]}  Rfe8 {[%clk 0:02:38]} 23. g4 {[%clk 0:02:34]}  Kg7 {[%clk 0:02:37]} 24. h4 {[%clk 0:02:34]}  h6 {[%clk 0:02:36]} 25. h5 {[%clk 0:02:33]}  Rc6 {[%clk 0:02:31]} 26. Kf2 {[%clk 0:02:30]}  Rec8 {[%clk 0:02:29]} 27. Kf3 {[%clk 0:02:24]}  Rb6 {[%clk 0:02:26]} 28. hxg6 {[%clk 0:02:08]}  fxg6 {[%clk 0:02:24]} 29. Nd5 {[%clk 0:02:01]}  Rxb3 {[%clk 0:02:23]} 30. Rxb3 {[%clk 0:02:01]}  Nxb3 {[%clk 0:02:23]} 31. Rb2 {[%clk 0:02:01]}  Na5 {[%clk 0:02:18]} 32. Nxe7 {[%clk 0:01:58]}  Rxc4 {[%clk 0:02:18]} 33. f5 {[%clk 0:01:56]}  g5 {[%clk 0:02:14]} 34. Rd2 {[%clk 0:01:56]}  Rc3+ {[%clk 0:02:14]} 35. Kf2 {[%clk 0:01:50]}  Nc4 {[%clk 0:02:14]} 36. Rd4 {[%clk 0:01:43]}  b5 {[%clk 0:02:14]} 37. Nc8 {[%clk 0:01:38]}  Rxa3 {[%clk 0:02:01]} 38. Nxd6 {[%clk 0:01:34]}  Ne5 {[%clk 0:01:56]} 39. Nxb5 {[%clk 0:01:32]}  Nxg4+ {[%clk 0:01:56]} 40. Kg2 {[%clk 0:01:31]}  Ra5 {[%clk 0:01:51]} 41. Rd7+ {[%clk 0:01:28]}  Kf6 {[%clk 0:01:51]} 42. Nxa7 {[%clk 0:01:21]}  Ra2+ {[%clk 0:01:39]} 43. Kg3 {[%clk 0:01:19]}  h5 {[%clk 0:01:40]} 44. Nc6 {[%clk 0:01:18]}  Ra3+ {[%clk 0:01:38]} 45. Kg2 {[%clk 0:01:18]}  h4 {[%clk 0:01:38]} 46. Rd6+ {[%clk 0:01:14]}  Kf7 {[%clk 0:01:38]} 47. Rd7+ {[%clk 0:01:13]}  Ke8 {[%clk 0:01:36]} 48. Rh7 {[%clk 0:01:08]}  Rg3+ {[%clk 0:01:33]} 49. Kf1 {[%clk 0:01:03]}  h3 {[%clk 0:01:34]} 50. e5 {[%clk 0:00:30]}  h2 {[%clk 0:01:33]} 51. Rh8+ {[%clk 0:00:29]}  Kd7 {[%clk 0:01:33]} 52. e6+ {[%clk 0:00:27]}  Kxc6 {[%clk 0:01:33]} 53. e7 {[%clk 0:00:27]}  Nf6 {[%clk 0:01:30]} 54. Rxh2 {[%clk 0:00:26]}  Rf3+ {[%clk 0:01:27]} 55. Ke2 {[%clk 0:00:24]}  Rxf5 {[%clk 0:01:27]} 56. Rh8 {[%clk 0:00:18]}  Kd7 {[%clk 0:01:27]} 57. Ra8 {[%clk 0:00:17]}  Kxe7 {[%clk 0:01:27]} 58. Ra7+ {[%clk 0:00:17]}  Ke6 {[%clk 0:01:27]} 59. Ra6+ {[%clk 0:00:18]}  Kf7 {[%clk 0:01:27]} 60. Ra7+ {[%clk 0:00:18]}  Kg6 {[%clk 0:01:28]} 61. Re7 {[%clk 0:00:19]}  g4 {[%clk 0:01:28]} 62. Re3 {[%clk 0:00:18]}  Kg5 {[%clk 0:01:27]} 63. Rg3 {[%clk 0:00:18]}  Nh5 {[%clk 0:01:24]} 64. Re3 {[%clk 0:00:16]}  Nf4+ {[%clk 0:01:23]} 65. Kf2 {[%clk 0:00:17]}  Nd5+ {[%clk 0:01:22]} 66. Kg3 {[%clk 0:00:16]}  Nxe3 {[%clk 0:01:22]} 67. Kh2 {[%clk 0:00:17]}  Rf2+ {[%clk 0:01:22]} 68. Kg3 {[%clk 0:00:18]}  Rg2# {[%clk 0:01:22]} 0-1


[Site "https://www.chess.com"]